[Event "*** Titled Tuesday Blitz"]
[Site "Chess.com"]
[Date "2021.02.02"]
[Round "4"]
[White "Szparu"]
[Black "A-Fier"]
[Result "0-1"]
[WhiteElo "2653"]
[BlackElo "2861"]
[TimeControl "180+1"]
[EndTime "10:42:10 PST"]
[Termination "A-Fier won on time"]

1. e4 {[%clk 0:02:58.8]} 1... c5 {[%clk 0:02:59.6]} 2. Nf3 {[%clk 0:02:58.8]}
2... e6 {[%clk 0:03:00]} 3. d4 {[%clk 0:02:58.8]} 3... cxd4 {[%clk 0:03:00.9]}
4. Nxd4 {[%clk 0:02:59.5]} 4... Nf6 {[%clk 0:03:01.6]} 5. Nc3 {[%clk 0:02:59.4]}
5... d6 {[%clk 0:03:02.2]} 6. g4 {[%clk 0:02:58.9]} 6... h6 {[%clk 0:03:02.3]}
7. h4 {[%clk 0:02:58.4]} 7... Nc6 {[%clk 0:03:02.3]} 8. g5 {[%clk 0:02:44.2]}
8... hxg5 {[%clk 0:03:02.1]} 9. Bxg5 {[%clk 0:02:45.1]} 9... Qb6 {[%clk
0:03:01.9]} 10. Nb3 {[%clk 0:02:44.4]} 10... Bd7 {[%clk 0:03:01.3]} 11. Qd2
{[%clk 0:02:40.3]} 11... a6 {[%clk 0:02:58.4]} 12. O-O-O {[%clk 0:02:40.6]}
12... O-O-O {[%clk 0:02:56.8]} 13. a3 {[%clk 0:02:35.6]} 13... Qc7 {[%clk
0:02:55.3]} 14. f4 {[%clk 0:02:27.4]} 14... Be7 {[%clk 0:02:55.3]} 15. Be2
{[%clk 0:02:17.7]} 15... Kb8 {[%clk 0:02:55.2]} 16. Rh3 {[%clk 0:02:11.2]} 16...
Bc8 {[%clk 0:02:54.6]} 17. Rd3 {[%clk 0:02:10.3]} 17... Ng8 {[%clk 0:02:50.6]}
18. Bxe7 {[%clk 0:02:09.8]} 18... Ngxe7 {[%clk 0:02:50.4]} 19. h5 {[%clk
0:02:07.1]} 19... g6 {[%clk 0:02:42.4]} 20. hxg6 {[%clk 0:01:55.8]} 20... Nxg6
{[%clk 0:02:43.3]} 21. f5 {[%clk 0:01:32.2]} 21... Nge5 {[%clk 0:02:43.4]} 22.
Rxd6 {[%clk 0:01:28.3]} 22... Rxd6 {[%clk 0:02:44.3]} 23. Qxd6 {[%clk
0:01:27.7]} 23... Qxd6 {[%clk 0:02:45.2]} 24. Rxd6 {[%clk 0:01:28.3]} 24... exf5
{[%clk 0:02:46.1]} 25. exf5 {[%clk 0:01:26]} 25... Bxf5 {[%clk 0:02:47]} 26. Nd4
{[%clk 0:01:05.5]} 26... Bg6 {[%clk 0:02:40.8]} 27. Nxc6+ {[%clk 0:01:01.9]}
27... Nxc6 {[%clk 0:02:41.7]} 28. Bd3 {[%clk 0:00:50]} 28... Rh1+ {[%clk
0:02:41.4]} 29. Kd2 {[%clk 0:00:48.9]} 29... Rh2+ {[%clk 0:02:42.1]} 30. Kc1
{[%clk 0:00:46]} 30... Bxd3 {[%clk 0:02:41.4]} 31. Rxd3 {[%clk 0:00:44.8]} 31...
f5 {[%clk 0:02:41.9]} 32. Rd2 {[%clk 0:00:43]} 32... Rh1+ {[%clk 0:02:41.2]} 33.
Rd1 {[%clk 0:00:43.2]} 33... Rh2 {[%clk 0:02:41.5]} 34. Rd2 {[%clk 0:00:43.6]}
34... Rh3 {[%clk 0:02:40.7]} 35. Rf2 {[%clk 0:00:42]} 35... Nd4 {[%clk
0:02:40.8]} 36. Ne2 {[%clk 0:00:41.6]} 36... Nf3 {[%clk 0:02:37.7]} 37. c3
{[%clk 0:00:35.7]} 37... Kc7 {[%clk 0:02:29.9]} 38. Nf4 {[%clk 0:00:13.2]} 38...
Rh1+ {[%clk 0:02:29.1]} 39. Kc2 {[%clk 0:00:13.3]} 39... Nh4 {[%clk 0:02:23.9]}
40. Ne6+ {[%clk 0:00:08.8]} 40... Kd6 {[%clk 0:02:23.5]} 41. Nd4 {[%clk
0:00:08]} 41... Ke5 {[%clk 0:02:24]} 42. Kd3 {[%clk 0:00:06.4]} 42... b5 {[%clk
0:02:14.9]} 43. Re2+ {[%clk 0:00:04.1]} 43... Kd5 {[%clk 0:02:15.2]} 44. Rf2
{[%clk 0:00:03.5]} 44... Rh3+ {[%clk 0:02:15.8]} 45. Kd2 {[%clk 0:00:03]} 45...
Ke5 {[%clk 0:02:15.2]} 46. Re2+ {[%clk 0:00:03.5]} 46... Kf4 {[%clk 0:02:11.3]}
47. Re6 {[%clk 0:00:03.4]} 47... Rh2+ {[%clk 0:02:11.8]} 48. Ne2+ {[%clk
0:00:03]} 48... Kf3 {[%clk 0:02:11.1]} 49. Kd3 {[%clk 0:00:03.7]} 49... Ng2
{[%clk 0:02:07.2]} 50. Nd4+ {[%clk 0:00:04.3]} 50... Kf4 {[%clk 0:02:03.6]} 51.
Ne2+ {[%clk 0:00:04.4]} 51... Kg4 {[%clk 0:02:00.4]} 52. Rxa6 {[%clk 0:00:04.3]}
52... f4 {[%clk 0:01:59.2]} 53. Rg6+ {[%clk 0:00:03.7]} 53... Kf5 {[%clk
0:01:58]} 54. Rg8 {[%clk 0:00:03.6]} 54... f3 {[%clk 0:01:50]} 55. Rf8+ {[%clk
0:00:03.3]} 55... Kg4 {[%clk 0:01:48.2]} 56. Rg8+ {[%clk 0:00:02.8]} 56... Kf5
{[%clk 0:01:45.6]} 57. Rf8+ {[%clk 0:00:02.7]} 57... Ke5 {[%clk 0:01:38.2]} 58.
Nd4 {[%clk 0:00:03.3]} 58... Ne1+ {[%clk 0:01:36.5]} 59. Ke3 {[%clk 0:00:03.7]}
59... Kd5 {[%clk 0:01:26.6]} 60. Rf5+ {[%clk 0:00:03.6]} 60... Kc4 {[%clk
0:01:26.4]} 61. Nxf3 {[%clk 0:00:03.7]} 61... Nxf3 {[%clk 0:01:23.3]} 62. Rxf3
{[%clk 0:00:04]} 62... Rxb2 {[%clk 0:01:24]} 63. Rf4+ {[%clk 0:00:03.6]} 63...
Kxc3 {[%clk 0:01:23.6]} 64. Rf8 {[%clk 0:00:02.4]} 64... Rb3 {[%clk 0:01:20.7]}
65. Ke4 {[%clk 0:00:02.4]} 65... Rxa3 {[%clk 0:01:20.3]} 66. Rc8+ {[%clk
0:00:02.9]} 66... Kb2 {[%clk 0:01:19.8]} 67. Kd4 {[%clk 0:00:02.8]} 67... b4
{[%clk 0:01:19.7]} 68. Kc4 {[%clk 0:00:03.2]} 68... Rc3+ {[%clk 0:01:19.5]} 0-1

[Event "*** Titled Tuesday Blitz"]
[Site "Chess.com"]
[Date "2021.02.02"]
[Round "4"]
[White "FMKonstantin_Twitch"]
[Black "SilviusTiberius"]
[Result "1-0"]
[WhiteElo "2619"]
[BlackElo "2469"]
[TimeControl "180+1"]
[EndTime "10:42:10 PST"]
[Termination "FMKonstantin_Twitch won by resignation"]

1. Nf3 {[%clk 0:03:00.6]} 1... Nf6 {[%clk 0:02:59.3]} 2. g3 {[%clk 0:03:01.5]}
2... d5 {[%clk 0:02:58.5]} 3. Bg2 {[%clk 0:03:02.4]} 3... e6 {[%clk 0:02:59.1]}
4. O-O {[%clk 0:03:03.3]} 4... Be7 {[%clk 0:02:59.5]} 5. d3 {[%clk 0:03:04.2]}
5... O-O {[%clk 0:02:58.5]} 6. c4 {[%clk 0:03:05.1]} 6... b6 {[%clk 0:02:56.8]}
7. cxd5 {[%clk 0:03:04.7]} 7... exd5 {[%clk 0:02:53.5]} 8. Nc3 {[%clk
0:03:05.6]} 8... Bb7 {[%clk 0:02:52.5]} 9. Bf4 {[%clk 0:02:54.1]} 9... c5 {[%clk
0:02:43.6]} 10. d4 {[%clk 0:02:51.1]} 10... Nc6 {[%clk 0:02:39]} 11. Rc1 {[%clk
0:02:49.3]} 11... Ne4 {[%clk 0:02:30.8]} 12. dxc5 {[%clk 0:02:38.2]} 12... Nxc3
{[%clk 0:02:24.9]} 13. Rxc3 {[%clk 0:02:39.1]} 13... bxc5 {[%clk 0:02:25.5]} 14.
Ne5 {[%clk 0:02:38.3]} 14... Nxe5 {[%clk 0:02:22.3]} 15. Bxe5 {[%clk 0:02:39.2]}
15... Qd7 {[%clk 0:02:14.6]} 16. Rb3 {[%clk 0:01:48.8]} 16... Bc6 {[%clk
0:02:10.5]} 17. Qc1 {[%clk 0:01:08.7]} 17... Qe6 {[%clk 0:01:55.5]} 18. Re3
{[%clk 0:01:00.3]} 18... Qd7 {[%clk 0:01:31.6]} 19. Rd1 {[%clk 0:00:55.5]} 19...
Rac8 {[%clk 0:01:21.4]} 20. Bxd5 {[%clk 0:00:53.8]} 20... Bxd5 {[%clk
0:01:19.3]} 21. Red3 {[%clk 0:00:53.9]} 21... Qb5 {[%clk 0:01:00.8]} 22. Rxd5
{[%clk 0:00:50.3]} 22... Qxe2 {[%clk 0:01:01.2]} 23. Bc3 {[%clk 0:00:49.1]}
23... Rfe8 {[%clk 0:00:53.3]} 24. Re1 {[%clk 0:00:42.9]} 24... Qf3 {[%clk
0:00:48.6]} 25. Rde5 {[%clk 0:00:40.6]} 25... Kf8 {[%clk 0:00:34.6]} 26. R1e3
{[%clk 0:00:35.5]} 26... Qc6 {[%clk 0:00:31.7]} 27. Qc2 {[%clk 0:00:21.8]} 27...
Bf6 {[%clk 0:00:18.9]} 28. Rxe8+ {[%clk 0:00:20.7]} 28... Rxe8 {[%clk
0:00:19.8]} 29. Rxe8+ {[%clk 0:00:21]} 29... Qxe8 {[%clk 0:00:20.1]} 30. Bxf6
{[%clk 0:00:20.1]} 30... Qe1+ {[%clk 0:00:18.9]} 31. Kg2 {[%clk 0:00:19.9]}
31... gxf6 {[%clk 0:00:19.5]} 32. Qxc5+ {[%clk 0:00:20.1]} 32... Kg7 {[%clk
0:00:18.4]} 33. Qxa7 {[%clk 0:00:19.9]} 33... Qe4+ {[%clk 0:00:18.8]} 34. f3
{[%clk 0:00:20.5]} 34... Qc2+ {[%clk 0:00:18.6]} 35. Qf2 {[%clk 0:00:21.3]}
35... Qc4 {[%clk 0:00:18.1]} 36. b3 {[%clk 0:00:20.5]} 36... Qc3 {[%clk
0:00:18.2]} 37. Qe2 {[%clk 0:00:19.4]} 37... h5 {[%clk 0:00:17.4]} 38. h4 {[%clk
0:00:19.7]} 38... Qd4 {[%clk 0:00:14]} 39. a4 {[%clk 0:00:19]} 39... Qb4 {[%clk
0:00:14]} 40. Qa2 {[%clk 0:00:18.1]} 40... Qc3 {[%clk 0:00:13.6]} 41. a5 {[%clk
0:00:17.5]} 41... f5 {[%clk 0:00:13.1]} 42. a6 {[%clk 0:00:16.5]} 42... f4
{[%clk 0:00:13.5]} 43. a7 {[%clk 0:00:16.3]} 43... fxg3 {[%clk 0:00:11.2]} 44.
a8=Q {[%clk 0:00:16.2]} 44... Qe3 {[%clk 0:00:12]} 45. Qb2+ {[%clk 0:00:15.9]}
1-0

[Event "*** Titled Tuesday Blitz"]
[Site "Chess.com"]
[Date "2021.02.02"]
[Round "4"]
[White "Usurpov"]
[Black "beto-betun"]
[Result "0-1"]
[WhiteElo "2331"]
[BlackElo "2193"]
[TimeControl "180+1"]
[EndTime "10:42:11 PST"]
[Termination "beto-betun won by resignation"]

1. e4 {[%clk 0:03:00.9]} 1... c5 {[%clk 0:03:00.2]} 2. Nf3 {[%clk 0:03:01]} 2...
d6 {[%clk 0:03:00.1]} 3. Bb5+ {[%clk 0:02:56.4]} 3... Nd7 {[%clk 0:02:55.8]} 4.
d4 {[%clk 0:02:55.9]} 4... cxd4 {[%clk 0:02:52.2]} 5. Qxd4 {[%clk 0:02:56.8]}
5... Nf6 {[%clk 0:02:39.4]} 6. Nc3 {[%clk 0:02:56.5]} 6... e5 {[%clk 0:02:33.5]}
7. Qd3 {[%clk 0:02:56.1]} 7... a6 {[%clk 0:02:23.6]} 8. Bxd7+ {[%clk 0:02:49.6]}
8... Nxd7 {[%clk 0:02:18.6]} 9. Bg5 {[%clk 0:02:47.1]} 9... Nc5 {[%clk
0:02:15.3]} 10. Qd2 {[%clk 0:02:38.8]} 10... f6 {[%clk 0:02:13.5]} 11. Be3
{[%clk 0:02:38.2]} 11... Be6 {[%clk 0:02:11.3]} 12. a4 {[%clk 0:02:30.8]} 12...
Rc8 {[%clk 0:02:05.2]} 13. a5 {[%clk 0:02:29.7]} 13... Be7 {[%clk 0:02:04.8]}
14. O-O {[%clk 0:02:26.8]} 14... O-O {[%clk 0:02:01.3]} 15. Nh4 {[%clk 0:02:22]}
15... g6 {[%clk 0:01:53.3]} 16. Nf3 {[%clk 0:02:11.4]} 16... Rf7 {[%clk
0:01:50]} 17. Rfd1 {[%clk 0:02:09.2]} 17... Qc7 {[%clk 0:01:47.5]} 18. Nd5
{[%clk 0:02:00.4]} 18... Bxd5 {[%clk 0:01:44.7]} 19. Qxd5 {[%clk 0:02:01.3]}
19... Qc6 {[%clk 0:01:43.1]} 20. Bxc5 {[%clk 0:01:50.6]} 20... Qxd5 {[%clk
0:01:40.8]} 21. Rxd5 {[%clk 0:01:49]} 21... Rxc5 {[%clk 0:01:40.6]} 22. Rxc5
{[%clk 0:01:49.2]} 22... dxc5 {[%clk 0:01:41.4]} 23. Rd1 {[%clk 0:01:49.6]}
23... Rf8 {[%clk 0:01:35.4]} 24. Rd5 {[%clk 0:01:39.9]} 24... Rd8 {[%clk
0:01:25.8]} 25. Nd2 {[%clk 0:01:39.7]} 25... Kf7 {[%clk 0:01:23.5]} 26. Nc4
{[%clk 0:01:37.1]} 26... Ke6 {[%clk 0:01:22]} 27. Rxd8 {[%clk 0:01:35.6]} 27...
Bxd8 {[%clk 0:01:22.9]} 28. f3 {[%clk 0:01:35.6]} 28... Bc7 {[%clk 0:01:17.2]}
29. Kf2 {[%clk 0:01:33.2]} 29... Kd7 {[%clk 0:01:15.9]} 30. c3 {[%clk
0:01:32.2]} 30... Kc6 {[%clk 0:01:14.9]} 31. Ke3 {[%clk 0:01:24.3]} 31... Kb5
{[%clk 0:01:09.9]} 32. Kd3 {[%clk 0:01:24.1]} 32... Bxa5 {[%clk 0:01:07.3]} 33.
Nd6+ {[%clk 0:01:23.1]} 33... Kc6 {[%clk 0:01:05.9]} 34. Nf7 {[%clk 0:01:12.4]}
34... b5 {[%clk 0:01:03.6]} 35. g4 {[%clk 0:01:10.8]} 35... c4+ {[%clk
0:01:01.7]} 36. Ke2 {[%clk 0:01:09.2]} 36... Kd7 {[%clk 0:01:00.8]} 37. h4
{[%clk 0:01:05]} 37... Ke6 {[%clk 0:00:59.6]} 38. Nh6 {[%clk 0:01:03.3]} 38...
Bb6 {[%clk 0:00:55.1]} 39. h5 {[%clk 0:01:01.9]} 39... g5 {[%clk 0:00:51.5]} 40.
Nf5 {[%clk 0:01:01.7]} 40... Bc5 {[%clk 0:00:51.5]} 41. Ng7+ {[%clk 0:00:59.7]}
41... Kd7 {[%clk 0:00:51.3]} 42. h6 {[%clk 0:00:58.4]} 42... Bf8 {[%clk
0:00:49.1]} 43. Nf5 {[%clk 0:00:55.6]} 43... Ke6 {[%clk 0:00:46.9]} 44. Kd2
{[%clk 0:00:53.9]} 44... Kf7 {[%clk 0:00:46.4]} 45. Kc2 {[%clk 0:00:52]} 45...
Kg6 {[%clk 0:00:46.4]} 46. Ne3 {[%clk 0:00:51.9]} 46... Kxh6 {[%clk 0:00:44.9]}
47. Nd5 {[%clk 0:00:52.8]} 47... Kg6 {[%clk 0:00:43.7]} 48. Nc7 {[%clk
0:00:52.9]} 48... h5 {[%clk 0:00:40.7]} 49. gxh5+ {[%clk 0:00:53.8]} 49... Kxh5
{[%clk 0:00:40.1]} 50. Nxa6 {[%clk 0:00:54.7]} 50... Bd6 {[%clk 0:00:35.8]} 51.
Kd2 {[%clk 0:00:42.3]} 51... Kh4 {[%clk 0:00:35.8]} 52. Ke2 {[%clk 0:00:42.1]}
52... Kg3 {[%clk 0:00:36.4]} 53. Ke3 {[%clk 0:00:36.5]} 53... Kg2 {[%clk
0:00:25.7]} 54. Ke2 {[%clk 0:00:36.1]} 54... Kg3 {[%clk 0:00:20]} 55. Ke3 {[%clk
0:00:36]} 55... g4 {[%clk 0:00:17.1]} 56. fxg4 {[%clk 0:00:36.1]} 56... Kxg4
{[%clk 0:00:17.8]} 57. Nb4 {[%clk 0:00:30.8]} 57... Bxb4 {[%clk 0:00:16.3]} 58.
cxb4 {[%clk 0:00:31.7]} 58... Kg3 {[%clk 0:00:16.3]} 0-1

[Event "*** Titled Tuesday Blitz"]
[Site "Chess.com"]
[Date "2021.02.02"]
[Round "4"]
[White "Ziyamammadov"]
[Black "rachidhuilda"]
[Result "0-1"]
[WhiteElo "1737"]
[BlackElo "2216"]
[TimeControl "180+1"]
[EndTime "10:42:11 PST"]
[Termination "rachidhuilda won by checkmate"]

1. e4 {[%clk 0:03:00.9]} 1... c5 {[%clk 0:02:57.5]} 2. Nf3 {[%clk 0:02:57.2]}
2... e6 {[%clk 0:02:57.8]} 3. d4 {[%clk 0:02:56.5]} 3... cxd4 {[%clk 0:02:58.1]}
4. Nxd4 {[%clk 0:02:55.7]} 4... a6 {[%clk 0:02:58.7]} 5. Nc3 {[%clk 0:02:55.4]}
5... Qc7 {[%clk 0:02:58.8]} 6. Be3 {[%clk 0:02:51.9]} 6... Bb4 {[%clk
0:02:57.7]} 7. Bd2 {[%clk 0:02:50]} 7... Nc6 {[%clk 0:02:56.4]} 8. Nxc6 {[%clk
0:02:48.7]} 8... dxc6 {[%clk 0:02:56.5]} 9. Bd3 {[%clk 0:02:48.3]} 9... e5
{[%clk 0:02:54.9]} 10. O-O {[%clk 0:02:46.7]} 10... Be7 {[%clk 0:02:43]} 11. Be3
{[%clk 0:02:25.6]} 11... Nf6 {[%clk 0:02:38.1]} 12. f3 {[%clk 0:02:04.8]} 12...
O-O {[%clk 0:02:35.1]} 13. Qd2 {[%clk 0:01:59.8]} 13... b5 {[%clk 0:02:29.2]}
14. Ne2 {[%clk 0:01:54.2]} 14... c5 {[%clk 0:02:16.5]} 15. c4 {[%clk 0:01:36.8]}
15... Rd8 {[%clk 0:02:05.8]} 16. Qc2 {[%clk 0:01:30.5]} 16... Rb8 {[%clk
0:01:31.8]} 17. Rad1 {[%clk 0:01:27.5]} 17... Be6 {[%clk 0:01:19.1]} 18. cxb5
{[%clk 0:01:26]} 18... axb5 {[%clk 0:01:13.5]} 19. Nc3 {[%clk 0:01:03.6]} 19...
c4 {[%clk 0:00:59.5]} 20. Be2 {[%clk 0:01:02.8]} 20... Bc5 {[%clk 0:00:46.5]}
21. Bxc5 {[%clk 0:00:48.9]} 21... Qxc5+ {[%clk 0:00:46.2]} 22. Kh1 {[%clk
0:00:49.7]} 22... Rd4 {[%clk 0:00:40.7]} 23. b3 {[%clk 0:00:44.9]} 23... Rbd8
{[%clk 0:00:38.1]} 24. bxc4 {[%clk 0:00:43.9]} 24... bxc4 {[%clk 0:00:32.8]} 25.
Na4 {[%clk 0:00:43.1]} 25... Qa5 {[%clk 0:00:20.5]} 26. Nc3 {[%clk 0:00:30.4]}
26... Qc5 {[%clk 0:00:16.6]} 27. Rxd4 {[%clk 0:00:29.5]} 27... exd4 {[%clk
0:00:13.6]} 28. Na4 {[%clk 0:00:29.1]} 28... d3 {[%clk 0:00:12.3]} 29. Rd1
{[%clk 0:00:19.9]} 29... Qb4 {[%clk 0:00:07.1]} 30. Qd2 {[%clk 0:00:18.1]} 30...
Qxa4 {[%clk 0:00:06.5]} 31. Bf1 {[%clk 0:00:18.5]} 31... Qb5 {[%clk 0:00:06.5]}
32. e5 {[%clk 0:00:19.1]} 32... Nd5 {[%clk 0:00:06.1]} 33. f4 {[%clk 0:00:20]}
33... Qc5 {[%clk 0:00:06]} 34. Qb2 {[%clk 0:00:19.4]} 34... c3 {[%clk
0:00:05.2]} 35. Qb3 {[%clk 0:00:19.3]} 35... Nxf4 {[%clk 0:00:05.1]} 36. Qa4
{[%clk 0:00:16.9]} 36... c2 {[%clk 0:00:04.8]} 37. Rc1 {[%clk 0:00:16.6]} 37...
d2 {[%clk 0:00:04.6]} 38. Rd1 {[%clk 0:00:07.8]} 38... cxd1=Q {[%clk 0:00:04.3]}
39. Qxd1 {[%clk 0:00:08.1]} 39... Qc1 {[%clk 0:00:04.8]} 40. Qa4 {[%clk
0:00:06.9]} 40... Qxf1# {[%clk 0:00:04.3]} 0-1

[Event "*** Titled Tuesday Blitz"]
[Site "Chess.com"]
[Date "2021.02.02"]
[Round "4"]
[White "dozer80"]
[Black "BvsN"]
[Result "1-0"]
[WhiteElo "2598"]
[BlackElo "2377"]
[TimeControl "180+1"]
[EndTime "10:42:12 PST"]
[Termination "dozer80 won by checkmate"]

1. e4 {[%clk 0:03:00.9]} 1... c5 {[%clk 0:02:59.7]} 2. Nf3 {[%clk 0:03:00.5]}
2... e6 {[%clk 0:03:00.2]} 3. d4 {[%clk 0:02:59.9]} 3... cxd4 {[%clk 0:03:00.1]}
4. Nxd4 {[%clk 0:03:00.8]} 4... Nf6 {[%clk 0:03:00.6]} 5. Nc3 {[%clk 0:02:59.3]}
5... Nc6 {[%clk 0:03:00.9]} 6. a3 {[%clk 0:02:59.1]} 6... Qc7 {[%clk 0:02:35.4]}
7. Be3 {[%clk 0:02:54.5]} 7... a6 {[%clk 0:02:32.1]} 8. Be2 {[%clk 0:02:52.8]}
8... Bd6 {[%clk 0:02:26.9]} 9. Ndb5 {[%clk 0:02:46.7]} 9... axb5 {[%clk
0:02:26.7]} 10. Nxb5 {[%clk 0:02:47.3]} 10... Qa5+ {[%clk 0:02:26.1]} 11. Bd2
{[%clk 0:02:28.4]} 11... Bb4 {[%clk 0:02:14]} 12. axb4 {[%clk 0:01:28.5]} 12...
Qxa1 {[%clk 0:02:13.3]} 13. Nc7+ {[%clk 0:01:29.1]} 13... Ke7 {[%clk 0:01:58.3]}
14. Nxa8 {[%clk 0:01:30]} 14... Qxa8 {[%clk 0:01:58]} 15. b5 {[%clk 0:01:29.7]}
15... Ne5 {[%clk 0:01:32.3]} 16. Bb4+ {[%clk 0:01:28.6]} 16... Ke8 {[%clk
0:01:28.9]} 17. O-O {[%clk 0:01:27.2]} 17... d5 {[%clk 0:01:23]} 18. Qd4 {[%clk
0:01:17.6]} 18... Qb8 {[%clk 0:01:13.5]} 19. f4 {[%clk 0:01:02.2]} 19... Ng6
{[%clk 0:01:05.1]} 20. e5 {[%clk 0:01:02.2]} 20... Ne4 {[%clk 0:01:01.1]} 21. c4
{[%clk 0:01:00.5]} 21... Ne7 {[%clk 0:00:52.4]} 22. cxd5 {[%clk 0:00:46.1]}
22... exd5 {[%clk 0:00:49.7]} 23. Rc1 {[%clk 0:00:31]} 23... Be6 {[%clk
0:00:42.3]} 24. g4 {[%clk 0:00:28.8]} 24... f5 {[%clk 0:00:29.3]} 25. exf6
{[%clk 0:00:26.9]} 25... gxf6 {[%clk 0:00:20.5]} 26. f5 {[%clk 0:00:21.6]} 26...
Bf7 {[%clk 0:00:15.7]} 27. b6 {[%clk 0:00:18]} 27... Rg8 {[%clk 0:00:14.9]} 28.
Bxe7 {[%clk 0:00:16.2]} 28... Kxe7 {[%clk 0:00:11]} 29. Rc7+ {[%clk 0:00:16.8]}
29... Kf8 {[%clk 0:00:10.4]} 30. Bf3 {[%clk 0:00:17.1]} 30... Qe8 {[%clk
0:00:08.9]} 31. Qc5+ {[%clk 0:00:15.7]} 31... Kg7 {[%clk 0:00:08.6]} 32. Qxd5
{[%clk 0:00:16.4]} 32... Nd6 {[%clk 0:00:05.2]} 33. Qxd6 {[%clk 0:00:15.6]}
33... Qe1+ {[%clk 0:00:05.5]} 34. Kg2 {[%clk 0:00:15.9]} 34... Rf8 {[%clk
0:00:02.6]} 35. g5 {[%clk 0:00:14.5]} 35... fxg5 {[%clk 0:00:02.4]} 36. Qd4+
{[%clk 0:00:14.6]} 36... Kg8 {[%clk 0:00:02.5]} 37. Rxb7 {[%clk 0:00:12.9]}
37... Re8 {[%clk 0:00:02.7]} 38. Rxf7 {[%clk 0:00:12]} 38... Kxf7 {[%clk
0:00:02.7]} 39. Bd5+ {[%clk 0:00:12.3]} 39... Ke7 {[%clk 0:00:02.3]} 40. f6+
{[%clk 0:00:09.5]} 40... Kd8 {[%clk 0:00:01.4]} 41. Bc6+ {[%clk 0:00:07.1]}
41... Kc8 {[%clk 0:00:01.9]} 42. Qd7+ {[%clk 0:00:07.3]} 42... Kb8 {[%clk
0:00:02.6]} 43. Qc7# {[%clk 0:00:07.8]} 1-0

[Event "*** Titled Tuesday Blitz"]
[Site "Chess.com"]
[Date "2021.02.02"]
[Round "4"]
[White "shaheus"]
[Black "ElCoachRene"]
[Result "1/2-1/2"]
[WhiteElo "2404"]
[BlackElo "2217"]
[TimeControl "180+1"]
[EndTime "10:42:13 PST"]
[Termination "Game drawn by repetition"]

1. e4 {[%clk 0:03:00.9]} 1... Nc6 {[%clk 0:02:59.7]} 2. Nf3 {[%clk 0:03:00.9]}
2... d5 {[%clk 0:02:59.2]} 3. exd5 {[%clk 0:03:00]} 3... Qxd5 {[%clk 0:03:00.1]}
4. Nc3 {[%clk 0:02:59.4]} 4... Qa5 {[%clk 0:03:00.5]} 5. Be2 {[%clk 0:02:59.6]}
5... Bg4 {[%clk 0:03:00.5]} 6. b4 {[%clk 0:02:55.8]} 6... Nxb4 {[%clk
0:02:41.7]} 7. O-O {[%clk 0:02:51]} 7... O-O-O {[%clk 0:02:37.3]} 8. Rb1 {[%clk
0:02:49.5]} 8... Nc6 {[%clk 0:02:21.5]} 9. Rb5 {[%clk 0:02:41.5]} 9... Bxf3
{[%clk 0:02:04.4]} 10. Rxa5 {[%clk 0:02:38.2]} 10... Bxe2 {[%clk 0:02:02.5]} 11.
Qxe2 {[%clk 0:02:26.6]} 11... Nxa5 {[%clk 0:02:02.3]} 12. Qf3 {[%clk 0:01:59.9]}
12... Nc6 {[%clk 0:01:51]} 13. Qxf7 {[%clk 0:01:58.9]} 13... Nf6 {[%clk
0:01:50.2]} 14. Qe6+ {[%clk 0:01:55.7]} 14... Kb8 {[%clk 0:01:49.6]} 15. d3
{[%clk 0:01:37.6]} 15... Nd4 {[%clk 0:01:48.7]} 16. Qc4 {[%clk 0:01:33.8]} 16...
e6 {[%clk 0:01:45.7]} 17. Be3 {[%clk 0:01:19.7]} 17... e5 {[%clk 0:01:34.4]} 18.
Rb1 {[%clk 0:01:08.7]} 18... b6 {[%clk 0:01:25.1]} 19. Nb5 {[%clk 0:00:40.7]}
19... Nxb5 {[%clk 0:01:19.4]} 20. Rxb5 {[%clk 0:00:35.1]} 20... Bd6 {[%clk
0:01:19.3]} 21. h3 {[%clk 0:00:32.3]} 21... Rhe8 {[%clk 0:01:17.7]} 22. a4
{[%clk 0:00:29.7]} 22... e4 {[%clk 0:01:14.6]} 23. d4 {[%clk 0:00:29.2]} 23...
Kb7 {[%clk 0:00:54.4]} 24. Rb1 {[%clk 0:00:28.6]} 24... a5 {[%clk 0:00:48.4]}
25. Qb3 {[%clk 0:00:26.5]} 25... Kc8 {[%clk 0:00:38.8]} 26. c4 {[%clk
0:00:26.3]} 26... Bb4 {[%clk 0:00:37.7]} 27. c5 {[%clk 0:00:23.6]} 27... Kb7
{[%clk 0:00:35.4]} 28. Qc2 {[%clk 0:00:20.1]} 28... bxc5 {[%clk 0:00:28.1]} 29.
dxc5 {[%clk 0:00:19.6]} 29... c6 {[%clk 0:00:28.5]} 30. Qc4 {[%clk 0:00:18.5]}
30... Nd5 {[%clk 0:00:23.1]} 31. Bd4 {[%clk 0:00:17.4]} 31... g6 {[%clk
0:00:20.8]} 32. Be3 {[%clk 0:00:15.2]} 32... Rd7 {[%clk 0:00:20.1]} 33. Bd2
{[%clk 0:00:15]} 33... e3 {[%clk 0:00:18.6]} 34. Bxb4 {[%clk 0:00:14]} 34...
axb4 {[%clk 0:00:17.7]} 35. fxe3 {[%clk 0:00:13.5]} 35... Rxe3 {[%clk
0:00:15.6]} 36. Rxb4+ {[%clk 0:00:12.2]} 36... Nxb4 {[%clk 0:00:15.3]} 37. Qxb4+
{[%clk 0:00:12.2]} 37... Kc8 {[%clk 0:00:15.7]} 38. Qb6 {[%clk 0:00:10.4]} 38...
Rc7 {[%clk 0:00:14.2]} 39. a5 {[%clk 0:00:08.4]} 39... Re1+ {[%clk 0:00:13.8]}
40. Kf2 {[%clk 0:00:08.2]} 40... Ra1 {[%clk 0:00:13.4]} 41. a6 {[%clk
0:00:07.8]} 41... Ra2+ {[%clk 0:00:13.9]} 42. Kg3 {[%clk 0:00:06.9]} 42... Ra3+
{[%clk 0:00:13.9]} 43. Kh2 {[%clk 0:00:06.4]} 43... Ra2 {[%clk 0:00:13.7]} 44.
Kg3 {[%clk 0:00:05.3]} 44... Ra3+ {[%clk 0:00:12.8]} 45. Kh2 {[%clk 0:00:05.2]}
45... Ra2 {[%clk 0:00:13.2]} 46. Kg3 {[%clk 0:00:04]} 1/2-1/2